[Event "VIII Open Semana Santa 2024"]
[Site "San Vicente del Raspeig"]
[Date "2024.04.01"]
[Round "9.13"]
[White "Domingo Nunez, Ruben"]
[Black "Colbow, Collin"]
[Result "0-1"]
[ECO "B22"]
[WhiteElo "2441"]
[BlackElo "2373"]
[Annotator "RC"]
[PlyCount "139"]
[EventDate "2024.03.27"]
[EventType "swiss"]
[EventCountry "ESP"]
[SourceTitle "playchess.com"]
[Source "ChessBase"]
[SourceQuality "1"]
[TimeControl "5400+30"]

1. e4 {[%emt 0:00:02]} c5 {[%emt 0:09:35]} 2. c3 {[%emt 0:00:24]} Nf6 {[%emt 0:01:12]} 3. e5 {[%emt 0:00:05]} Nd5 {[%emt 0:00:04]} 4. d4 {[%emt 0:00:04]} cxd4 {[%emt 0:00:19]} 5. Nf3 {[%emt 0:00:05]} e6 {[%emt 0:01:20]} 6. cxd4 {[%emt 0:00:05]} d6 {[%emt 0:00:14]} 7. a3 {[%emt 0:00:07]} Be7 {[%emt 0:00:52]} 8. Bd3 {[%emt 0:00:12]} Bd7 {[%emt 0:00:17]} 9. O-O {[%emt 0:01:18]} Bc6 {[%emt 0:00:35]} 10. Nbd2 {[%emt 0:00:58]} dxe5 {[%emt 0:10:17]} 11. dxe5 {[%emt 0:05:36]} Ne3 {[%emt 0:02:25]} 12. fxe3 {[%emt 0:00:05]} Qxd3 {[%emt 0:00:06]} 13. Nb3 {[%emt 0:00:01]} Qxd1 {[%emt 0:04:35]} 14. Rxd1 {[%emt 0:00:01]} Bd5 {[%emt 0:02:19]} 15. Nbd4 {[%emt 0:01:09]} Nc6 {[%emt 0:03:02]} 16. Bd2 {[%emt 0:00:27]} Bxf3 {[%emt 0:08:38]} 17. Nxf3 {[%emt 0:00:02]} O-O-O {[%emt 0:01:51]} 18. Kf2 {[%emt 0:14:38]} Rd7 {[%emt 0:04:50]} 19. Bc3 {[%emt 0:00:05]} Rhd8 {[%emt 0:03:07]} 20. Rxd7 {[%emt 0:00:07]} Rxd7 {[%emt 0:00:02]} 21. Ke2 {[%emt 0:00:49]} b5 {[%emt 0:01:49]} 22. Rf1 {[%emt 0:01:18]} a5 {[%emt 0:09:39]} 23. Bd4 {[%emt 0:10:00]} Rd5 {[%emt 0:03:55]} 24. Bc3 {[%emt 0:07:00]} b4 {[%emt 0:07:45]} 25. axb4 {[%emt 0:00:11]} axb4 {[%emt 0:00:12]} 26. Bd4 {[%emt 0:00:09]} Kd7 {[%emt 0:00:41]} 27. Rd1 {[%emt 0:06:00]} Kc7 {[%emt 0:01:21]} 28. Rc1 {[%emt 0:03:04]} Kd7 {[%emt 0:00:27]} 29. Ra1 {[%emt 0:07:42]} Ra5 {[%emt 0:04:23]} 30. Rd1 {[%emt 0:06:04]} Kc7 {[%emt 0:00:20]} 31. Kd3 {[%emt 0:02:15]} Ra2 {[%emt 0:02:42]} 32. Kc2 {[%emt 0:02:02]} Ra5 {[%emt 0:01:19]} 33. Kb3 {[%emt 0:04:18]} Rd5 {[%emt 0:00:26]} 34. Ra1 {[%emt 0:01:31]} f6 {[%emt 0:02:14]} 35. exf6 {[%emt 0:00:49]} gxf6 {[%emt 0:00:38]} 36. Kc4 {[%emt 0:01:27]} f5 {[%emt 0:03:17]} 37. Ra8 {[%emt 0:01:45]} Kd6 {[%emt 0:02:14]} 38. Bb6 {[%emt 0:08:22]} h5 {[%emt 0:03:25]} 39. h3 {[%emt 0:06:23]} Bf6 {[%emt 0:00:22]} 40. Nd4 {[%emt 0:00:16]} f4 {[%emt 0:02:22]} 41. Nb5+ {[%emt 0:07:11]} Kd7 {[%emt 0:00:05]} 42. exf4 {[%emt 0:01:25]} Bxb2 {[%emt 0:00:04]} 43. Rf8 {[%emt 0:00:54]} Rf5 {[%emt 0:00:45]} 44. Rxf5 {[%emt 0:02:29]} exf5 {[%emt 0:00:03]} 45. Be3 {[%emt 0:00:06]} h4 {[%emt 0:04:23]} 46. Bd2 {[%emt 0:00:33]} Ke6 {[%emt 0:01:28]} 47. Kc5 {[%emt 0:00:18]} Kd7 {[%emt 0:00:35]} 48. Kc4 {[%emt 0:03:43]} Ke6 {[%emt 0:00:11]} 49. Nc7+ {[%emt 0:00:43]} Kd6 {[%emt 0:00:46]} 50. Na6 {[%emt 0:00:25]} Ba3 {[%emt 0:00:49]} 51. Nc5 {[%emt 0:00:30]} Na5+ {[%emt 0:00:36]} 52. Kb5 {[%emt 0:00:02]} b3 {[%emt 0:00:16]} 53. Na4 {[%emt 0:00:58]} Nc6 {[%emt 0:00:55]} 54. Nb6 {[%emt 0:00:46]} Bc5 {[%emt 0:00:31]} 55. Na4 {[%emt 0:00:06]} Ba3 {[%emt 0:00:07]} 56. Nb6 {[%emt 0:00:48]} Bc5 {[%emt 0:00:04]} 57. Na4 {[%emt 0:00:22]} Bd4 {[%emt 0:00:36]} 58. Be1 {[%emt 0:00:29]} b2 {[%emt 0:00:35]} 59. Nxb2 {[%emt 0:00:02]} Bxb2 {[%emt 0:00:05]} 60. Bxh4 {[%emt 0:00:03]} Bc1 {[%emt 0:00:56]} 61. Bg5 {[%emt 0:00:45]} Nd4+ {[%emt 0:00:18]} 62. Kc4 {[%emt 0:00:01]} Ne6 {[%emt 0:00:15]} 63. Bf6 {[%emt 0:01:38]} Nxf4 {[%emt 0:00:58]} 64. g4 {[%emt 0:00:05]} Nd5 {[%emt 0:00:15]} 65. Bd4 {[%emt 0:00:12]} f4 {[%emt 0:00:16]} 66. Kd3 {[%emt 0:00:15]} Be3 {[%emt 0:00:54]} 67. Bxe3 {[%emt 0:01:32]} fxe3 {[%emt 0:00:03]} 68. h4 {[%emt 0:00:02]} Ke5 {[%emt 0:00:07]} 69. h5 {[%emt 0:00:04]} Kf4 {[%emt 0:00:25]} 70. h6 {[%emt 0:00:04]} 0-1

[Event "VIII Open Semana Santa 2024"]
[Site "San Vicente del Raspeig"]
[Date "2024.04.01"]
[Round "9.14"]
[White "Espinosa Aranda, Angel"]
[Black "Mamedov, Edgar"]
[Result "1/2-1/2"]
[ECO "A13"]
[WhiteElo "2440"]
[BlackElo "2317"]
[Annotator "RC"]
[PlyCount "29"]
[EventDate "2024.03.27"]
[EventType "swiss"]
[EventCountry "ESP"]
[SourceTitle "playchess.com"]
[Source "ChessBase"]
[SourceQuality "1"]
[TimeControl "5400+30"]

1. c4 {[%emt 0:00:06]} e6 {[%emt 0:00:25]} 2. g3 {[%emt 0:01:19]} d5 {[%emt 0:00:45]} 3. Bg2 {[%emt 0:00:18]} Nf6 {[%emt 0:01:26]} 4. Nf3 {[%emt 0:03:18]} dxc4 {[%emt 0:00:41]} 5. Qa4+ {[%emt 0:00:32]} Bd7 {[%emt 0:00:27]} 6. Qxc4 {[%emt 0:00:06]} c5 {[%emt 0:00:06]} 7. Ne5 {[%emt 0:01:35]} Qc8 {[%emt 0:00:27]} 8. O-O {[%emt 0:03:10]} Nc6 {[%emt 0:01:07]} 9. Nxd7 {[%emt 0:01:13]} Qxd7 {[%emt 0:00:28]} 10. Qc2 {[%emt 0:01:38]} Be7 {[%emt 0:01:05]} 11. Nc3 {[%emt 0:00:31]} O-O {[%emt 0:04:33]} 12. b3 {[%emt 0:01:29]} Rac8 {[%emt 0:01:10]} 13. Bb2 {[%emt 0:00:25]} b6 {[%emt 0:00:32]} 14. Rac1 {[%emt 0:08:43]} Rfd8 {[%emt 0:07:09]} 15. d3 {[%emt 0:01:55]} 1/2-1/2

[Event "VIII Open Semana Santa 2024"]
[Site "San Vicente del Raspeig"]
[Date "2024.04.01"]
[Round "9.15"]
[White "Adhiban, B.."]
[Black "Dauner, Benedikt"]
[Result "1/2-1/2"]
[ECO "B01"]
[WhiteElo "2541"]
[BlackElo "2366"]
[Annotator "TA"]
[PlyCount "136"]
[EventDate "2024.03.27"]
[EventType "swiss"]
[EventCountry "ESP"]
[SourceTitle "playchess.com"]
[Source "ChessBase"]
[SourceQuality "1"]
[TimeControl "5400+30"]

{[%evp 31,136,60,66,47,56,50,48,43,46,45,50,38,45,36,54,51,58,46,65,23,29,29,40,34,33,43,55,22,16,8,10,7,8,12,29,0,0,0,0,0,0,0,0,0,0,0,0,0,0,0,0,0,0,0,0,0,0,0,0,0,0,0,0,0,0,0,0,0,0,0,0,0,0,0,0,0,0,0,0,0,0,0,0,0,0,0,0,0,0,0,0,0,0,0,0,0,0,0,0,0,0,0,0,0,0,0,0]} 1. e4 {[%emt 0:00:30]} d5 {[%emt 0:01:59]} 2. exd5 {[%emt 0:00:00]} Qxd5 {[%emt 0:00:13]} 3. Nc3 {[%emt 0:00:00]} Qd6 {[%emt 0:00:12]} 4. d4 {[%emt 0:00:28]} Nf6 {[%emt 0:00:20]} 5. Nf3 {[%emt 0:00:12]} Nc6 {[%emt 0:00:18]} 6. Nb5 {[%emt 0:00:59] B01: Scandinavian Defence.} Qd8 {[%emt 0:02:07]} 7. c4 {[%emt 0:00:05]} Bg4 {[%emt 0:01:04]} 8. d5 {[%emt 0:02:36]} a6 {[%emt 0:00:44]} 9. Nc3 {[%emt 0:04:51]} Ne5 {[%emt 0:00:15]} 10. Be2 {[%emt 0:01:47]} Bxf3 {[%emt 0:01:13]} 11. Bxf3 {[%emt 0:00:49]} Qd7 {[%emt 0:00:14]} 12. O-O {[%emt 0:03:32]} Nxf3+ {[%emt 0:00:53]} 13. Qxf3 {[%emt 0:00:04]} Qg4 $146 {[%emt 0:00:07]} ({Predecessor:} 13... g6 14. Re1 Bg7 15. Bg5 O-O 16. Rad1 b5 17. c5 b4 18. c6 Qc8 19. Ne4 Qd8 {1-0 Kotenko,P (2367)-Mescheryakov,A (1974) Astrakhan op 2013 (4)}) 14. Qxg4 {[%emt 0:01:56]} Nxg4 {[%emt 0:00:07]} 15. Bf4 {[%emt 0:01:45]} O-O-O {[%emt 0:03:12]} 16. Rfe1 {[%emt 0:05:29]} Rg8 {[%emt 0:01:21]} 17. h3 {[%emt 0:02:22]} Nf6 $1 {[%emt 0:01:06]} 18. Rad1 {[%emt 0:00:06]} g5 {[%emt 0:01:22]} 19. Be3 {[%emt 0:10:50]} Rg6 {[%emt 0:03:09]} 20. g4 {[%emt 0:01:56]} Nd7 {[%emt 0:10:28]} 21. b3 {[%emt 0:00:07]} h6 {[%emt 0:03:23]} 22. Bd4 {[%emt 0:12:01]} Re8 {[%emt 0:01:01]} 23. Ne4 {[%emt 0:00:33]} e6 {[%emt 0:05:40]} 24. Ng3 {[%emt 0:00:11]} Bd6 {[%emt 0:00:37]} 25. Kg2 {[%emt 0:02:51]} Bxg3 {[%emt 0:19:39]} 26. Kxg3 {[%emt 0:00:06]} Kd8 {[%emt 0:00:35]} 27. Bc3 {[%emt 0:16:38]} exd5 {[%emt 0:01:51]} 28. Rxe8+ {[%emt 0:00:04]} Kxe8 {[%emt 0:00:06]} 29. Rxd5 {[%emt 0:00:02]} Re6 {[%emt 0:00:59]} 30. Kf3 {[%emt 0:04:49]} f6 {[%emt 0:01:02]} 31. h4 {[%emt 0:00:43]} c6 {[%emt 0:01:17]} 32. Rd1 {[%emt 0:00:06]} Ne5+ {[%emt 0:02:13]} 33. Bxe5 {[%emt 0:00:51]} Rxe5 {[%emt 0:00:06]} 34. Rh1 {[%emt 0:00:06]} b5 {[%emt 0:12:14]} 35. cxb5 {[%emt 0:03:43]} cxb5 {[%emt 0:02:21]} 36. hxg5 {[%emt 0:04:32]} hxg5 {[%emt 0:00:06]} 37. Rh7 {[%emt 0:00:15]} b4 {[%emt 0:01:25]} 38. Rb7 {[%emt 0:00:08]} a5 {[%emt 0:00:07]} 39. Ra7 {[%emt 0:00:24]} Kf8 {[%emt 0:00:25]} 40. Kg2 {[%emt 0:06:48]} Kg8 {[%emt 0:00:16]} 41. Kg3 {[%emt 0:01:45]} Kf8 {[%emt 0:00:12]} 42. Kg2 {[%emt 0:00:04]} Kg8 {[%emt 0:00:05]} 43. Kg3 {[%emt 0:00:02]} Kf8 {[%emt 0:00:05]} 44. f3 {[%emt 0:00:03]} Kg8 {[%emt 0:00:15]} 45. Kf2 {[%emt 0:00:07]} Kf8 {[%emt 0:00:10]} 46. f4 {[%emt 0:03:32]} gxf4 {[%emt 0:13:22]} 47. Kf3 {[%emt 0:00:14]} Kg8 {[%emt 0:00:33]} 48. Kxf4 {[%emt 0:00:09]} Rc5 {[%emt 0:00:26]} 49. Ke4 {[%emt 0:00:50]} Rg5 {[%emt 0:00:26]} 50. Kf3 {[%emt 0:00:18]} Rd5 {[%emt 0:00:22]} 51. Kf4 {[%emt 0:01:33]} Rc5 {[%emt 0:00:05]} 52. Rd7 {[%emt 0:00:45]} Re5 {[%emt 0:01:27]} 53. Rd2 {[%emt 0:01:00]} Kg7 {[%emt 0:03:56]} 54. Rh2 {[%emt 0:02:25]} a4 {[%emt 0:05:08]} 55. bxa4 {[%emt 0:03:01]} Ra5 {[%emt 0:00:20]} 56. Ke4 {[%emt 0:00:06]} Rxa4 {[%emt 0:00:17]} 57. Kd5 {[%emt 0:00:04]} Kg6 {[%emt 0:02:31]} 58. Kc4 {[%emt 0:04:12]} Kg5 {[%emt 0:00:15]} 59. Rg2 {[%emt 0:00:05]} b3+ {[%emt 0:01:48]} 60. Kxb3 {[%emt 0:00:03]} Rxg4 {[%emt 0:00:04]} 61. Rxg4+ {[%emt 0:00:29]} Kxg4 {[%emt 0:00:05]} 62. a4 {[%emt 0:01:21]} f5 {[%emt 0:00:10]} 63. a5 {[%emt 0:01:28]} f4 {[%emt 0:00:04]} 64. a6 {[%emt 0:00:05]} f3 {[%emt 0:00:04]} 65. a7 {[%emt 0:00:02]} f2 {[%emt 0:00:04]} 66. a8=Q {[%emt 0:00:03]} f1=Q {[%emt 0:05:29]} 67. Qe4+ {[%emt 0:00:02]} Qf4 {[%emt 0:00:00]} 68. Qxf4+ {[%emt 0:00:01]} Kxf4 {[%emt 0:01:00]} 1/2-1/2

[Event "VIII Open Semana Santa 2024"]
[Site "San Vicente del Raspeig"]
[Date "2024.04.01"]
[Round "9.16"]
[White "Makhnev, Denis"]
[Black "Ruiz Buendia, Miguel"]
[Result "1-0"]
[ECO "A07"]
[WhiteElo "2516"]
[BlackElo "2366"]
[Annotator "TA"]
[PlyCount "63"]
[EventDate "2024.03.27"]
[EventType "swiss"]
[EventCountry "ESP"]
[SourceTitle "playchess.com"]
[Source "ChessBase"]
[SourceQuality "1"]
[TimeControl "5400+30"]

{[%evp 9,63,11,37,22,40,15,31,8,12,-12,16,0,18,13,27,12,22,11,49,54,43,43,69,56,95,66,116,79,82,81,117,112,110,126,123,110,120,55,51,61,253,277,368,363,978,665,715,710,680,721,720,720,710,703,677,683]} 1. Nf3 {[%emt 0:00:03]} d5 {[%emt 0:04:12]} 2. g3 {[%emt 0:00:08]} g6 {[%emt 0:01:52]} 3. Bg2 {[%emt 0:01:09]} Bg7 {[%emt 0:00:26]} 4. d3 {[%emt 0:00:08]} Nd7 {[%emt 0:04:10]} 5. Nc3 {[%emt 0:00:33]} c6 {[%emt 0:02:33]} 6. e4 {[%emt 0:01:41]} dxe4 {[%emt 0:01:28]} 7. dxe4 {[%emt 0:00:46]} e5 {[%emt 0:02:12]} 8. Be3 {[%emt 0:02:13] White is slightly better.} Ngf6 {[%emt 0:02:34]} 9. h3 {[%emt 0:00:09]} Qc7 {[%emt 0:05:34]} 10. a4 {[%emt 0:00:20]} a5 {[%emt 0:01:55]} 11. Nd2 {[%emt 0:02:44]} Nb6 {[%emt 0:04:09] Repels Nc4} 12. O-O {[%emt 0:07:08]} O-O {[%emt 0:01:39]} 13. Qe2 {[%emt 0:17:53]} Rd8 {[%emt 0:05:34]} 14. f4 {[%emt 0:01:15]} exf4 {[%emt 0:10:38]} 15. gxf4 {[%emt 0:00:08]} Nh5 {[%emt 0:00:50][%cal Od8d4]} 16. Qf2 {[%emt 0:00:27]} Nd7 {[%emt 0:09:49]} 17. e5 {[%emt 0:03:07]} Bf8 {[%emt 0:07:54]} (17... f6 $14) 18. Nde4 {[%emt 0:13:15]} Ng7 {[%emt 0:00:40] [#]} 19. Nf6+ $1 {[%emt 0:01:55]} Kh8 {[%emt 0:03:20] [#]} 20. Nxd7 $1 {[%emt 0:01:45]} Qxd7 {[%emt 0:03:14]} 21. Bb6 {[%emt 0:01:00]} Re8 {[%emt 0:00:16]} 22. Ne4 {[%emt 0:00:07] White is more active.} Qf5 {[%emt 0:02:59] Black is weak on the dark squares} 23. Rad1 {[%emt 0:05:27]} (23. Nf6 $16) 23... Be7 $1 $14 {[%emt 0:00:52] Wards off Qh4} 24. Bc5 $36 {[%emt 0:02:40][%mdl 2048] Black must now prevent Bxe7. White is more active.} Bxc5 {[%emt 0:02:41] A mistake that costs the game.} (24... Qe6 $1 $14) 25. Qxc5 $18 {[%emt 0:00:11]} Ne6 {[%emt 0:00:21]} 26. Qf2 {[%emt 0:00:18] Threatens to win with Nd6.} Rd8 {[%emt 0:03:25]} (26... Rf8 27. Ng3 Qxf4) 27. Ng3 {[%emt 0:00:46] White is clearly winning.} Rxd1 {[%emt 0:00:15]} 28. Nxf5 {[%emt 0:00:06]} Rxf1+ {[%emt 0:00:05]} 29. Bxf1 {[%emt 0:00:06]} gxf5 {[%emt 0:00:15]} 30. Qh4 {[%emt 0:01:04]} Bd7 {[%emt 0:03:11]} 31. Qf6+ {[%emt 0:00:07]} Kg8 {[%emt 0:00:11]} 32. Qxf5 {[%emt 0:00:09] Weighted Error Value: White=0.26 (precise) /Black=0.29 (precise) .  Loses game:     	---       	Black=1      Mistake:       	White=1     	Black=2      Inaccurate:     	White=3     	Black=6      OK:         	White=5     	Black=6      Best:        	White=3     	Black=2      Strong:       	White=2     	Black=1} 1-0

[Event "VIII Open Semana Santa 2024"]
[Site "San Vicente del Raspeig"]
[Date "2024.04.01"]
[Round "9.17"]
[White "Cesar Maestre, Bernardo"]
[Black "Bora, Safal"]
[Result "1/2-1/2"]
[ECO "C11"]
[WhiteElo "2381"]
[BlackElo "2490"]
[Annotator "TA"]
[PlyCount "104"]
[EventDate "2024.03.27"]
[EventType "swiss"]
[EventCountry "ESP"]
[SourceTitle "playchess.com"]
[Source "ChessBase"]
[SourceQuality "1"]
[TimeControl "5400+30"]

{[%evp 22,104,-24,-31,0,-21,14,13,7,-20,0,-39,-28,-33,0,-8,0,0,0,0,0,-8,27,27,20,20,23,28,27,25,25,30,31,0,81,0,0,0,0,0,0,0,0,0,0,0,0,0,0,0,0,0,8,0,0,0,47,8,8,8,21,0,0,0,93,41,76,0,70,0,70,0,12,13,129,11,11,-5,-5,-5,-5,-5,-5,-5,-5]} 1. e4 {[%emt 0:00:02]} e6 {[%emt 0:02:03]} 2. d4 {[%emt 0:00:08]} d5 {[%emt 0:00:04]} 3. Nc3 {[%emt 0:00:05]} Nf6 {[%emt 0:00:09]} 4. e5 {[%emt 0:00:05]} Nfd7 {[%emt 0:00:05]} 5. f4 {[%emt 0:00:05]} c5 {[%emt 0:00:04]} 6. Nf3 {[%emt 0:00:03]} a6 {[%emt 0:00:11]} 7. Ne2 {[%emt 0:01:03] C11: French: Classical System: 4 e5 and 4 Bg5 dxe4.} Nc6 {[%emt 0:01:07]} 8. Be3 {[%emt 0:00:52]} b5 {[%emt 0:02:01]} 9. h4 {[%emt 0:10:13]} Be7 {[%emt 0:06:45]} 10. h5 $146 {[%emt 0:01:04]} ({Predecessor:} 10. c3 b4 11. c4 cxd4 12. Nexd4 Nxd4 13. Nxd4 Bxh4+ 14. Kd2 Be7 15. Nc6 Qc7 16. Nxe7 {1-0 Horvath,D (2523)-Terry,R (2520) Titled Tuesday intern op 06th Jun Early blitz 2023 (9)}) 10... b4 {[%emt 0:02:01]} 11. g4 {[%emt 0:21:46]} a5 {[%emt 0:08:07]} 12. c3 {[%emt 0:09:03]} bxc3 {[%emt 0:07:56]} 13. bxc3 {[%emt 0:00:22]} cxd4 {[%emt 0:01:35]} 14. Nexd4 {[%emt 0:03:14]} Nxd4 {[%emt 0:00:42]} 15. Bxd4 {[%emt 0:00:47]} Nc5 {[%emt 0:02:20]} 16. Rb1 {[%emt 0:01:40]} O-O {[%emt 0:02:48]} 17. Qc2 {[%emt 0:00:36]} Ne4 {[%emt 0:11:07]} 18. Bd3 {[%emt 0:02:29]} Ba6 {[%emt 0:01:56]} 19. Bxe4 {[%emt 0:06:09]} dxe4 {[%emt 0:00:11]} 20. Qxe4 {[%emt 0:00:04]} Bc4 {[%emt 0:01:15]} 21. Rh2 {[%emt 0:00:11]} Qd5 {[%emt 0:14:00]} 22. Ng5 {[%emt 0:06:55]} Qxe4+ {[%emt 0:01:59]} 23. Nxe4 {[%emt 0:00:37]} Bd3 {[%emt 0:00:09]} 24. Rb7 {[%emt 0:00:09]} Bxe4 {[%emt 0:00:06]} 25. Rxe7 {[%emt 0:00:07]} Rfb8 {[%emt 0:00:30]} 26. Kf2 {[%emt 0:04:03]} Rb1 {[%emt 0:03:17]} 27. Kg3 {[%emt 0:01:20]} (27. h6 {is interesting.} a4 28. hxg7 Rb2+ 29. Kg3) 27... a4 {[%emt 0:03:19]} (27... Rf1 $11 {keeps the balance.}) 28. Ra7 {[%emt 0:03:14]} (28. Re2 $16 Bb7 29. c4) 28... Rxa7 $11 {[%emt 0:02:20]} 29. Bxa7 {[%emt 0:00:06]} h6 {[%emt 0:03:31]} 30. Bc5 {[%emt 0:04:27]} Rc1 {[%emt 0:01:43]} 31. Bd4 {[%emt 0:00:17]} Bd5 {[%emt 0:06:10]} 32. a3 {[%emt 0:01:05]} Ra1 {[%emt 0:00:42]} 33. Bc5 {[%emt 0:00:04]} Rc1 {[%emt 0:00:07]} 34. Bd4 {[%emt 0:00:03]} Ra1 {[%emt 0:01:18]} 35. Bc5 {[%emt 0:00:04]} Rd1 {[%emt 0:00:19]} 36. Bd4 {[%emt 0:01:10]} Kf8 {[%emt 0:02:08]} 37. Rb2 {[%emt 0:02:08]} Bb3 {[%emt 0:00:14]} 38. f5 {[%emt 0:04:41]} Ke8 {[%emt 0:02:34]} (38... exf5 $11 39. gxf5 Rf1) 39. Rf2 {[%emt 0:00:38]} Rg1+ {[%emt 0:01:12]} 40. Rg2 {[%emt 0:01:18]} Ra1 {[%emt 0:00:25]} 41. Bc5 {[%emt 0:00:20]} Rc1 {[%emt 0:00:24]} 42. Bd4 {[%emt 0:00:31]} Kd7 {[%emt 0:00:50] [#]} (42... Ra1 $11) 43. Rg1 {[%emt 0:02:22]} ({Better is} 43. f6 $1 $16 {[%cal Rf6g7]} gxf6 44. exf6) 43... Rc2 {[%emt 0:01:42]} 44. Rg2 {[%emt 0:00:07]} Rc1 {[%emt 0:00:07]} 45. Rg1 {[%emt 0:00:06]} Rc2 {[%emt 0:02:39]} 46. Rg2 {[%emt 0:00:07]} (46. f6 $14 gxf6 47. exf6) 46... Rxg2+ {[%emt 0:01:34]} 47. Kxg2 {[%emt 0:00:04]} Bd1 {[%emt 0:00:04] [#]} (47... exf5 $11 48. e6+ (48. gxf5 Bd1 $11) 48... Kxe6 (48... fxe6 49. Bxg7 Ke7 50. Bxh6 $14)) 48. Kg3 {[%emt 0:00:12]} (48. f6 $1 $16 {[%cal Rf6g7]} gxf6 49. Kh3) 48... exf5 $11 {[%emt 0:00:40]} 49. gxf5 {[%emt 0:00:05]} Bxh5 {[%emt 0:00:06]} 50. e6+ {[%emt 0:00:11]} fxe6 {[%emt 0:00:06]} 51. fxe6+ {[%emt 0:00:03]} Kxe6 {[%emt 0:00:04]} 52. Bxg7 {[%emt 0:00:07]} Kd5 {[%emt 0:09:44]} 1/2-1/2

[Event "VIII Open Semana Santa 2024"]
[Site "San Vicente del Raspeig"]
[Date "2024.04.01"]
[Round "9.18"]
[White "Beydullayeva, Govhar"]
[Black "Solodovnichenko, Yuri"]
[Result "1/2-1/2"]
[ECO "A40"]
[WhiteElo "2374"]
[BlackElo "2481"]
[Annotator "RC"]
[PlyCount "167"]
[EventDate "2024.03.27"]
[EventType "swiss"]
[EventCountry "ESP"]
[SourceTitle "playchess.com"]
[Source "ChessBase"]
[SourceQuality "1"]
[TimeControl "5400+30"]

1. d4 {[%emt 0:00:01]} e6 {[%emt 0:00:14]} 2. c4 {[%emt 0:05:12]} b6 {[%emt 0:00:14]} 3. e4 {[%emt 0:01:00]} Bb7 {[%emt 0:00:07]} 4. Bd3 {[%emt 0:02:09]} Nc6 {[%emt 0:00:08]} 5. Nf3 {[%emt 0:04:30]} Nb4 {[%emt 0:00:52]} 6. Nc3 {[%emt 0:01:01]} Nxd3+ {[%emt 0:00:06]} 7. Qxd3 {[%emt 0:00:01]} Ne7 {[%emt 0:00:12]} 8. d5 {[%emt 0:06:28]} Ng6 {[%emt 0:05:28]} 9. Be3 {[%emt 0:03:59]} Bd6 {[%emt 0:04:37]} 10. h4 {[%emt 0:07:50]} O-O {[%emt 0:01:51]} 11. O-O-O {[%emt 0:02:37]} f5 {[%emt 0:05:56]} 12. exf5 {[%emt 0:18:29]} Rxf5 {[%emt 0:01:01]} 13. Nd4 {[%emt 0:06:53]} Rf8 {[%emt 0:00:41]} 14. dxe6 {[%emt 0:08:14]} Nf4 {[%emt 0:01:01]} 15. Qc2 {[%emt 0:02:24]} dxe6 {[%emt 0:02:14]} 16. Ne4 {[%emt 0:00:49]} Qe8 {[%emt 0:06:30]} 17. g3 {[%emt 0:02:42]} e5 {[%emt 0:05:02]} 18. Nb5 {[%emt 0:03:21]} Ne2+ {[%emt 0:02:08]} 19. Kb1 {[%emt 0:09:35]} Qg6 {[%emt 0:00:06]} 20. Nexd6 {[%emt 0:00:56]} Qxc2+ {[%emt 0:00:15]} 21. Kxc2 {[%emt 0:00:02]} Bxh1 {[%emt 0:00:07]} 22. Nxc7 {[%emt 0:00:22]} Rad8 {[%emt 0:00:10]} 23. Ne6 {[%emt 0:04:32]} Nd4+ {[%emt 0:00:04]} 24. Nxd4 {[%emt 0:06:05]} Rxd6 {[%emt 0:00:43]} 25. Nb5 {[%emt 0:00:02]} Be4+ {[%emt 0:01:22]} 26. Kc1 {[%emt 0:00:02]} Rxd1+ {[%emt 0:00:08]} 27. Kxd1 {[%emt 0:00:00]} Rd8+ {[%emt 0:01:32]} 28. Kc1 {[%emt 0:00:37]} Rd7 {[%emt 0:00:31]} 29. b3 {[%emt 0:00:24]} Kf7 {[%emt 0:01:03]} 30. a4 {[%emt 0:01:15]} Bf3 {[%emt 0:03:46]} 31. Kb2 {[%emt 0:01:32]} Ke6 {[%emt 0:00:46]} 32. Nc3 {[%emt 0:00:54]} Rc7 {[%emt 0:05:05]} 33. Nb5 {[%emt 0:00:06]} Rb7 {[%emt 0:00:06]} 34. Nc3 {[%emt 0:01:28]} h6 {[%emt 0:01:37]} 35. b4 {[%emt 0:00:15]} Bg2 {[%emt 0:00:39]} 36. Kb3 {[%emt 0:00:58]} Bf1 {[%emt 0:00:58]} 37. Ne4 {[%emt 0:01:06]} Bd3 {[%emt 0:00:08]} 38. Nd2 {[%emt 0:00:20]} Be2 {[%emt 0:02:32]} 39. Ne4 {[%emt 0:01:02]} Bd1+ {[%emt 0:03:54]} 40. Ka3 {[%emt 0:00:04]} Bc2 {[%emt 0:00:39]} 41. Nc3 {[%emt 0:00:40]} Bd3 {[%emt 0:02:24]} 42. Kb3 {[%emt 0:00:31]} Rc7 {[%emt 0:00:13]} 43. c5 {[%emt 0:00:03]} bxc5 {[%emt 0:00:05]} 44. Bxc5 {[%emt 0:00:16]} a6 {[%emt 0:01:31]} 45. Be3 {[%emt 0:00:57]} Rb7 {[%emt 0:00:25]} 46. Bc5 {[%emt 0:00:28]} Rb8 {[%emt 0:01:13]} 47. Nd1 {[%emt 0:01:09]} a5 {[%emt 0:43:36]} 48. Nb2 {[%emt 0:00:30]} Be2 {[%emt 0:00:00]} 49. Nc4 {[%emt 0:00:36]} axb4 {[%emt 0:00:00]} 50. Nb6 {[%emt 0:00:15]} g5 {[%emt 0:00:00]} 51. hxg5 {[%emt 0:00:11]} hxg5 {[%emt 0:00:00]} 52. Kxb4 {[%emt 0:00:30]} g4 {[%emt 0:00:00]} 53. Kc3 {[%emt 0:00:26]} Rd8 {[%emt 0:00:00]} 54. a5 {[%emt 0:00:43]} Rd1 {[%emt 0:00:00]} 55. Kb2 {[%emt 0:00:47]} Bb5 {[%emt 0:00:00]} 56. Be3 {[%emt 0:00:06]} Kd6 {[%emt 0:00:00]} 57. Nc8+ {[%emt 0:00:17]} Kd7 {[%emt 0:00:00]} 58. Nb6+ {[%emt 0:00:11]} Kc7 {[%emt 0:00:00]} 59. Kc3 {[%emt 0:00:22]} Kc6 {[%emt 0:00:00]} 60. Nc4 {[%emt 0:00:54]} Kd5 {[%emt 0:00:00]} 61. Nd2 {[%emt 0:00:25]} Ra1 {[%emt 0:00:00]} 62. Nb3 {[%emt 0:01:04]} Ra4 {[%emt 0:00:00]} 63. Bb6 {[%emt 0:00:11]} Rc4+ {[%emt 0:00:00]} 64. Kb2 {[%emt 0:00:15]} Rc8 {[%emt 0:00:00]} 65. Ka3 {[%emt 0:00:04]} Kc4 {[%emt 0:00:00]} 66. Nd2+ {[%emt 0:01:01]} Kd3 {[%emt 0:00:00]} 67. Nb3 {[%emt 0:00:38]} Ke2 {[%emt 0:00:00]} 68. Kb4 {[%emt 0:00:24]} Bd3 {[%emt 0:00:00]} 69. Nc5 {[%emt 0:00:25]} e4 {[%emt 0:00:00]} 70. a6 {[%emt 0:00:56]} Bxa6 {[%emt 0:00:00]} 71. Nxa6 {[%emt 0:00:02]} Rc6 {[%emt 0:00:00]} 72. Kb5 {[%emt 0:01:08]} Rxb6+ {[%emt 0:00:00]} 73. Kxb6 {[%emt 0:00:01]} Kxf2 {[%emt 0:00:00]} 74. Kc5 {[%emt 0:00:48]} Kxg3 {[%emt 0:00:00]} 75. Nb4 {[%emt 0:00:38]} Kf3 {[%emt 0:00:00]} 76. Kd4 {[%emt 0:00:18]} e3 {[%emt 0:00:00]} 77. Nc2 {[%emt 0:00:53]} e2 {[%emt 0:00:00]} 78. Kd3 {[%emt 0:00:03]} Kf2 {[%emt 0:00:00]} 79. Kd2 {[%emt 0:00:09]} g3 {[%emt 0:00:00]} 80. Ne1 {[%emt 0:00:07]} Kf1 {[%emt 0:00:00]} 81. Nc2 {[%emt 0:00:05]} g2 {[%emt 0:00:08]} 82. Ne3+ {[%emt 0:00:05]} Kf2 {[%emt 0:00:03]} 83. Nxg2 {[%emt 0:00:01]} Kxg2 {[%emt 0:00:04]} 84. Kxe2 {[%emt 0:00:03]} 1/2-1/2